[Event "NJSK 2026 Jeugd C"]
[Site "Helmond, Netherlands"]
[Date "2026.04.27"]
[Round "4.17"]
[White "Nair, Pranav Prasobh"]
[Black "Cubuk, Armin"]
[Result "1/2-1/2"]
[TimeControl "90min/40moves + 30sec/move"]
[WhiteTitle "-"]
[BlackTitle "-"]
[WhiteFideId "40109135"]
[BlackFideId "40105423"]
[WhiteElo "1747"]
[BlackElo "1881"]

1. e4 {[%clk 01:29:52]} {[%emt 00:01:07]} c6 {[%clk 01:30:50]} {[%emt
00:00:10]} 2. d4 {[%clk 01:30:18]} {[%emt 00:00:05]} d5 {[%clk 01:31:19]}
{[%emt 00:00:01]} 3. e5 {[%clk 01:30:40]} {[%emt 00:00:07]} c5 {[%clk
01:31:46]} {[%emt 00:00:03]} 4. c3 {[%clk 01:31:02]} {[%emt 00:00:08]} Nc6
{[%clk 01:32:11]} {[%emt 00:00:05]} 5. Be2 {[%clk 01:31:25]} {[%emt 00:00:06]}
Bf5 {[%clk 01:31:59]} {[%emt 00:00:43]} 6. Nf3 {[%clk 01:31:43]} {[%emt
00:00:11]} e6 {[%clk 01:32:26]} {[%emt 00:00:05]} 7. O-O {[%clk 01:32:03]}
{[%emt 00:00:10]} Bg6 {[%clk 01:32:39]} {[%emt 00:00:17]} 8. a3 {[%clk
01:30:26]} {[%emt 00:02:06]} cxd4 {[%clk 01:27:34]} {[%emt 00:05:35]} 9. cxd4
{[%clk 01:30:47]} {[%emt 00:00:09]} Nge7 {[%clk 01:27:04]} {[%emt 00:01:00]} 10.
b4 {[%clk 01:26:09]} {[%emt 00:05:09]} Nf5 {[%clk 01:24:14]} {[%emt 00:03:19]}
11. Bb2 {[%clk 01:25:37]} {[%emt 00:01:02]} Be7 {[%clk 01:23:58]} {[%emt
00:00:47]} 12. Nc3 {[%clk 01:25:23]} {[%emt 00:00:42]} O-O {[%clk 01:22:56]}
{[%emt 00:01:30]} 13. Rc1 {[%clk 01:22:43]} {[%emt 00:03:13]} Rc8 {[%clk
01:21:27]} {[%emt 00:01:59]} 14. Qd2 {[%clk 01:21:15]} {[%emt 00:01:58]} Nh4
{[%clk 01:01:12]} {[%emt 00:20:45]} 15. Nxh4 {[%clk 01:20:09]} {[%emt
00:01:36]} Bxh4 {[%clk 01:01:33]} {[%emt 00:00:10]} 16. Bg4 {[%clk 01:05:21]}
{[%emt 00:15:18]} Re8 {[%clk 00:56:59]} {[%emt 00:05:03]} 17. g3 {[%clk
00:57:45]} {[%emt 00:08:06]} Be7 {[%clk 00:55:43]} {[%emt 00:01:46]} 18. Na4
{[%clk 00:57:06]} {[%emt 00:01:09]} b5 {[%clk 00:34:10]} {[%emt 00:22:02]} 19.
Nc5 {[%clk 00:57:00]} {[%emt 00:00:36]} Qb6 {[%clk 00:32:39]} {[%emt 00:02:01]}
20. f4 {[%clk 00:32:47]} {[%emt 00:24:44]} Bxc5 {[%clk 00:31:34]} {[%emt
00:01:35]} 21. Rxc5 {[%clk 00:33:09]} {[%emt 00:00:08]} Ne7 {[%clk 00:31:32]}
{[%emt 00:00:30]} 22. Rfc1 {[%clk 00:32:31]} {[%emt 00:01:09]} Rxc5 {[%clk
00:30:46]} {[%emt 00:01:17]} 23. Rxc5 {[%clk 00:32:08]} {[%emt 00:00:52]} Rc8
{[%clk 00:30:23]} {[%emt 00:00:53]} 24. Rxc8+ {[%clk 00:30:32]} Nxc8 {[%clk
00:30:52]} {[%emt 00:02:09]} 25. Qc3 {[%clk 00:28:20]} {[%emt 00:02:41]} Ne7
{[%clk 00:30:40]} {[%emt 00:00:41]} 26. Bh3 {[%clk 00:28:32]} {[%emt 00:00:19]}
Qc6 {[%clk 00:30:18]} {[%emt 00:00:52]} 27. Bf1 {[%clk 00:28:22]} {[%emt
00:00:39]} a6 {[%clk 00:30:06]} {[%emt 00:00:43]} 28. Qxc6 {[%clk 00:24:35]}
{[%emt 00:04:16]} Nxc6 {[%clk 00:30:30]} {[%emt 00:00:07]} 29. Bc3 {[%clk
00:24:35]} {[%emt 00:00:30]} Bc2 {[%clk 00:30:40]} {[%emt 00:00:19]} 30. Kf2
{[%clk 00:24:02]} {[%emt 00:01:03]} Kf8 {[%clk 00:29:18]} {[%emt 00:01:53]} 31.
Ke3 {[%clk 00:24:02]} {[%emt 00:00:28]} Bb3 {[%clk 00:28:56]} {[%emt 00:00:52]}
32. g4 {[%clk 00:24:03]} {[%emt 00:00:29]} g6 {[%clk 00:28:48]} {[%emt
00:00:39]} 33. Bd3 {[%clk 00:23:54]} {[%emt 00:00:38]} Ne7 {[%clk 00:27:52]}
{[%emt 00:01:27]} 34. h4 {[%clk 00:22:56]} {[%emt 00:01:28]} Bd1 {[%clk
00:26:38]} {[%emt 00:01:44]} 35. g5 {[%clk 00:22:36]} {[%emt 00:00:50]} Nc8
{[%clk 00:26:04]} {[%emt 00:01:04]} 36. Kd2 {[%clk 00:22:14]} {[%emt 00:00:52]}
Bb3 {[%clk 00:25:32]} {[%emt 00:01:02]} 37. Ke3 {[%clk 00:22:16]} {[%emt
00:00:27]} Nb6 {[%clk 00:25:55]} {[%emt 00:00:08]} 38. Kd2 {[%clk 00:22:15]}
{[%emt 00:00:31]} Ke7 {[%clk 00:26:14]} {[%emt 00:00:12]} 39. Bb2 {[%clk
00:21:24]} {[%emt 00:01:20]} Kd7 {[%clk 00:25:57]} {[%emt 00:00:47]} 40. Kc3
{[%clk 00:20:54]} {[%emt 00:01:00]} Bc4 {[%clk 00:25:32]} {[%emt 00:00:55]} 41.
Bc2 {[%clk 00:20:12]} {[%emt 00:01:12]} Kc6 {[%clk 00:25:05]} {[%emt 00:00:57]}
42. Bc1 {[%clk 00:19:33]} {[%emt 00:01:09]} Na4+ {[%clk 00:23:46]} {[%emt
00:01:49]} 43. Bxa4 {[%clk 00:19:45]} {[%emt 00:00:18]} bxa4 {[%clk 00:24:14]}
{[%emt 00:00:02]} 44. Bd2 {[%clk 00:19:05]} {[%emt 00:01:11]} Kb5 {[%clk
00:24:23]} {[%emt 00:00:20]} 45. Bc1 {[%clk 00:19:23]} {[%emt 00:00:11]} a5
{[%clk 00:24:19]} {[%emt 00:00:36]} 46. bxa5 {[%clk 00:19:46]} {[%emt
00:00:07]} Kxa5 {[%clk 00:24:38]} {[%emt 00:00:10]} 47. Bd2 {[%clk 00:20:09]}
{[%emt 00:00:07]} 1/2-1/2

[Event "NJSK 2026 Jeugd C"]
[Site "Helmond, Netherlands"]
[Date "2026.04.28"]
[Round "5.1"]
[White "Teianu, Sabin"]
[Black "Guillaumond, Matthieu"]
[Result "1/2-1/2"]
[TimeControl "90min/40moves + 30sec/move"]
[WhiteTitle "-"]
[BlackTitle "-"]
[WhiteFideId "1095846"]
[BlackFideId "1097091"]
[WhiteElo "2131"]
[BlackElo "2104"]

1. d4 {[%clk 01:30:49]} {[%emt 00:00:10]} d5 {[%clk 01:30:50]} {[%emt
00:00:10]} 2. c4 {[%clk 01:31:14]} {[%emt 00:00:04]} e6 {[%clk 01:31:12]}
{[%emt 00:00:09]} 3. Nf3 {[%clk 01:31:38]} {[%emt 00:00:06]} Nf6 {[%clk
01:31:30]} {[%emt 00:00:12]} 4. Nc3 {[%clk 01:32:04]} {[%emt 00:00:04]} Nbd7
{[%clk 01:31:43]} {[%emt 00:00:18]} 5. cxd5 {[%clk 01:31:18]} {[%emt 00:01:15]}
exd5 {[%clk 01:32:05]} {[%emt 00:00:08]} 6. Bg5 {[%clk 01:31:40]} {[%emt
00:00:08]} Bb4 {[%clk 01:32:28]} {[%emt 00:00:07]} 7. Qc2 {[%clk 01:30:57]}
{[%emt 00:01:13]} c5 {[%clk 01:30:09]} {[%emt 00:02:50]} 8. dxc5 {[%clk
01:27:19]} {[%emt 00:04:07]} Qa5 {[%clk 01:29:44]} {[%emt 00:00:55]} 9. Bd2
{[%clk 01:12:44]} {[%emt 00:15:05]} Nxc5 {[%clk 01:16:49]} {[%emt 00:13:26]} 10.
Rc1 {[%clk 01:02:49]} {[%emt 00:10:25]} Nce4 {[%clk 00:51:06]} {[%emt
00:26:13]} 11. a3 {[%clk 00:53:09]} {[%emt 00:10:09]} Bxc3 {[%clk 00:50:59]}
{[%emt 00:00:37]} 12. Bxc3 {[%clk 00:53:19]} {[%emt 00:00:19]} Qb6 {[%clk
00:51:04]} {[%emt 00:00:26]} 13. Bd4 {[%clk 00:38:47]} {[%emt 00:15:03]} Qa5+
{[%clk 00:51:01]} {[%emt 00:00:32]} 14. Bc3 {[%clk 00:33:07]} {[%emt 00:06:10]}
Qb6 {[%clk 00:51:26]} {[%emt 00:00:06]} 15. Bd4 {[%clk 00:13:38]} {[%emt
00:19:58]} 1/2-1/2

[Event "NJSK 2026 Jeugd C"]
[Site "Helmond, Netherlands"]
[Date "2026.04.28"]
[Round "5.2"]
[White "Thijssen, Freek"]
[Black "Blok, Lukas"]
[Result "0-1"]
[TimeControl "90min/40moves + 30sec/move"]
[WhiteTitle "-"]
[BlackTitle "-"]
[WhiteFideId "1091840"]
[BlackFideId "40110494"]
[WhiteElo "2159"]
[BlackElo "1991"]

1. e4 {[%clk 01:30:53]} {[%emt 00:00:05]} d6 {[%clk 01:30:38]} {[%emt
00:00:23]} 2. d4 {[%clk 01:31:02]} {[%emt 00:00:20]} Nf6 {[%clk 01:31:04]}
{[%emt 00:00:04]} 3. Nc3 {[%clk 01:31:26]} {[%emt 00:00:06]} g6 {[%clk
01:31:29]} {[%emt 00:00:04]} 4. Be3 {[%clk 01:31:17]} {[%emt 00:00:40]} c6
{[%clk 01:31:55]} {[%emt 00:00:04]} 5. Qd2 {[%clk 01:31:35]} {[%emt 00:00:12]}
Nbd7 {[%clk 01:32:20]} {[%emt 00:00:05]} 6. Nf3 {[%clk 01:29:00]} {[%emt
00:03:04]} Bg7 {[%clk 01:29:27]} {[%emt 00:03:23]} 7. Bh6 {[%clk 01:25:05]}
{[%emt 00:04:26]} O-O {[%clk 01:11:55]} {[%emt 00:18:02]} 8. h4 {[%clk
01:19:37]} {[%emt 00:05:58]} Bxh6 {[%clk 01:11:40]} {[%emt 00:00:44]} 9. Qxh6
{[%clk 01:20:04]} {[%emt 00:00:03]} Ng4 {[%clk 01:11:48]} {[%emt 00:00:23]} 10.
Qd2 {[%clk 01:14:09]} {[%emt 00:06:25]} h5 {[%clk 01:09:59]} {[%emt 00:02:20]}
11. Ng5 {[%clk 01:10:35]} {[%emt 00:04:02]} e5 {[%clk 01:02:40]} {[%emt
00:07:50]} 12. f3 {[%clk 01:08:30]} {[%emt 00:02:35]} Ngf6 {[%clk 01:02:39]}
{[%emt 00:00:31]} 13. O-O-O {[%clk 01:07:06]} {[%emt 00:01:53]} Qa5 {[%clk
00:54:49]} {[%emt 00:08:20]} 14. g4 {[%clk 00:59:13]} {[%emt 00:08:24]} b5
{[%clk 00:51:33]} {[%emt 00:03:46]} 15. Kb1 {[%clk 00:46:42]} {[%emt 00:13:00]}
Kg7 {[%clk 00:42:33]} {[%emt 00:09:30]} 16. Bh3 {[%clk 00:36:32]} {[%emt
00:10:41]} Nb6 {[%clk 00:39:34]} {[%emt 00:03:28]} 17. gxh5 {[%clk 00:34:29]}
{[%emt 00:02:33]} Nxh5 {[%clk 00:34:36]} {[%emt 00:05:28]} 18. Bg4 {[%clk
00:31:30]} {[%emt 00:03:31]} Nc4 {[%clk 00:34:15]} {[%emt 00:00:51]} 19. Qc1
{[%clk 00:30:43]} {[%emt 00:01:17]} Nf4 {[%clk 00:34:23]} {[%emt 00:00:24]} 20.
dxe5 {[%clk 00:21:42]} {[%emt 00:09:30]} dxe5 {[%clk 00:34:20]} {[%emt
00:00:32]} 21. Bxc8 {[%clk 00:02:55]} {[%emt 00:19:18]} b4 {[%clk 00:32:20]}
{[%emt 00:02:29]} 22. Be6 {[%clk 00:02:09]} {[%emt 00:01:17]} fxe6 {[%clk
00:29:07]} {[%emt 00:03:43]} 23. Rd7+ {[%clk 00:02:35]} {[%emt 00:00:03]} Kg8
{[%clk 00:29:28]} {[%emt 00:00:10]} 24. Nxe6 {[%clk 00:02:30]} {[%emt
00:00:35]} bxc3 {[%clk 00:27:57]} {[%emt 00:02:00]} 25. Rg7+ {[%clk 00:02:14]}
{[%emt 00:00:46]} Kh8 {[%clk 00:28:26]} {[%emt 00:00:01]} 26. h5 {[%clk
00:02:19]} {[%emt 00:00:27]} g5 {[%clk 00:28:44]} {[%emt 00:00:11]} 27. Nxf4
{[%clk 00:00:41]} {[%emt 00:02:07]} cxb2 {[%clk 00:26:33]} {[%emt 00:02:41]} 28.
Ng6+ {[%clk 00:00:33]} {[%emt 00:00:39]} Kxg7 {[%clk 00:26:54]} {[%emt
00:00:09]} 29. Qxg5 {[%clk 00:00:47]} {[%emt 00:00:16]} Na3+ {[%clk 00:27:20]}
{[%emt 00:00:04]} 30. Kxb2 {[%clk 00:01:11]} {[%emt 00:00:06]} Rab8+ {[%clk
00:27:44]} {[%emt 00:00:06]} 0-1

[Event "NJSK 2026 Jeugd C"]
[Site "Helmond, Netherlands"]
[Date "2026.04.28"]
[Round "5.3"]
[White "Pathak, Raghav"]
[Black "Huang, Vincent"]
[Result "1-0"]
[TimeControl "90min/40moves + 30sec/move"]
[WhiteTitle "-"]
[BlackTitle "-"]
[WhiteFideId "1084259"]
[BlackFideId "40104184"]
[WhiteElo "2091"]
[BlackElo "1855"]

1. e4 {[%clk 01:30:14]} {[%emt 00:00:46]} c5 {[%clk 01:30:52]} {[%emt
00:00:08]} 2. Nf3 {[%clk 01:30:13]} {[%emt 00:00:31]} d6 {[%clk 01:31:14]}
{[%emt 00:00:08]} 3. d4 {[%clk 01:30:40]} {[%emt 00:00:03]} cxd4 {[%clk
01:31:34]} {[%emt 00:00:10]} 4. Nxd4 {[%clk 01:31:08]} {[%emt 00:00:02]} Nf6
{[%clk 01:31:57]} {[%emt 00:00:07]} 5. Nc3 {[%clk 01:31:35]} {[%emt 00:00:03]}
g6 {[%clk 01:32:14]} {[%emt 00:00:13]} 6. Be3 {[%clk 01:31:27]} {[%emt
00:00:38]} Bg7 {[%clk 01:32:20]} {[%emt 00:00:24]} 7. f3 {[%clk 01:31:52]}
{[%emt 00:00:05]} O-O {[%clk 01:32:17]} {[%emt 00:00:33]} 8. Bc4 {[%clk
01:32:00]} {[%emt 00:00:22]} Nc6 {[%clk 01:31:18]} {[%emt 00:01:30]} 9. Qd2
{[%clk 01:32:18]} {[%emt 00:00:12]} a6 {[%clk 01:21:37]} {[%emt 00:10:11]} 10.
a3 {[%clk 01:27:27]} {[%emt 00:05:21]} Qc7 {[%clk 01:11:57]} {[%emt 00:10:08]}
11. Ba2 {[%clk 01:25:59]} {[%emt 00:01:59]} Ne5 {[%clk 01:05:39]} {[%emt
00:06:48]} 12. Qe2 {[%clk 01:23:46]} {[%emt 00:02:42]} Bd7 {[%clk 01:02:10]}
{[%emt 00:04:00]} 13. g4 {[%clk 01:17:30]} {[%emt 00:06:47]} Nc6 {[%clk
00:56:13]} {[%emt 00:06:27]} 14. O-O-O {[%clk 01:12:00]} {[%emt 00:05:59]} b5
{[%clk 00:50:30]} {[%emt 00:06:13]} 15. g5 {[%clk 01:10:47]} {[%emt 00:01:43]}
Nh5 {[%clk 00:47:15]} {[%emt 00:03:45]} 16. Nd5 {[%clk 01:10:07]} {[%emt
00:01:10]} Qd8 {[%clk 00:45:58]} {[%emt 00:01:46]} 17. Nxc6 {[%clk 01:04:34]}
{[%emt 00:06:04]} Bxc6 {[%clk 00:45:40]} {[%emt 00:00:49]} 18. f4 {[%clk
01:01:33]} {[%emt 00:03:30]} e6 {[%clk 00:42:25]} {[%emt 00:03:45]} 19. Bb6
{[%clk 00:43:57]} {[%emt 00:18:05]} Qd7 {[%clk 00:41:13]} {[%emt 00:01:40]} 20.
Nf6+ {[%clk 00:30:47]} {[%emt 00:13:42]} Bxf6 {[%clk 00:34:13]} {[%emt
00:07:33]} 21. gxf6 {[%clk 00:31:10]} {[%emt 00:00:07]} Nxf6 {[%clk 00:34:23]}
{[%emt 00:00:21]} 22. Bd4 {[%clk 00:31:01]} {[%emt 00:00:39]} Nxe4 {[%clk
00:30:37]} {[%emt 00:04:16]} 23. Rhg1 {[%clk 00:30:44]} {[%emt 00:00:47]} d5
{[%clk 00:28:01]} {[%emt 00:03:06]} 24. h4 {[%clk 00:29:18]} {[%emt 00:01:54]}
f6 {[%clk 00:19:34]} {[%emt 00:08:59]} 25. h5 {[%clk 00:24:21]} {[%emt
00:05:26]} Kg7 {[%clk 00:14:00]} {[%emt 00:06:04]} 26. hxg6 {[%clk 00:24:22]}
{[%emt 00:00:29]} h6 {[%clk 00:14:11]} {[%emt 00:00:20]} 27. Qh5 {[%clk
00:23:17]} {[%emt 00:01:34]} Rh8 {[%clk 00:14:12]} {[%emt 00:00:29]} 28. Rde1
{[%clk 00:23:10]} {[%emt 00:00:38]} Raf8 {[%clk 00:13:42]} {[%emt 00:01:00]} 29.
Re3 {[%clk 00:22:54]} {[%emt 00:00:46]} Qd6 {[%clk 00:13:17]} {[%emt 00:00:54]}
30. Rf1 {[%clk 00:19:52]} {[%emt 00:03:30]} Qc7 {[%clk 00:12:08]} {[%emt
00:01:40]} 31. c3 {[%clk 00:19:49]} {[%emt 00:00:33]} a5 {[%clk 00:12:06]}
{[%emt 00:00:32]} 32. Bb1 {[%clk 00:19:34]} {[%emt 00:00:46]} b4 {[%clk
00:11:22]} {[%emt 00:01:14]} 33. axb4 {[%clk 00:19:00]} {[%emt 00:01:03]} axb4
{[%clk 00:11:42]} {[%emt 00:00:11]} 34. Bxe4 {[%clk 00:16:27]} {[%emt
00:03:03]} dxe4 {[%clk 00:11:23]} {[%emt 00:00:48]} 35. Qc5 {[%clk 00:16:49]}
{[%emt 00:00:08]} Qb7 {[%clk 00:10:12]} {[%emt 00:01:41]} 36. cxb4 {[%clk
00:15:33]} {[%emt 00:01:46]} Bb5 {[%clk 00:10:21]} {[%emt 00:00:22]} 37. Kd2
{[%clk 00:11:03]} {[%emt 00:05:00]} Bxf1 {[%clk 00:09:45]} {[%emt 00:01:06]} 38.
Ra3 {[%clk 00:10:45]} {[%emt 00:00:48]} Ba6 {[%clk 00:08:25]} {[%emt 00:01:50]}
39. f5 {[%clk 00:06:11]} {[%emt 00:05:04]} Rd8 {[%clk 00:07:06]} {[%emt
00:01:48]} 40. Rxa6 {[%clk 00:06:07]} {[%emt 00:00:34]} Rd7 {[%clk 00:06:17]}
{[%emt 00:01:20]} 41. Rxe6 {[%clk 00:04:37]} {[%emt 00:01:59]} Rf8 {[%clk
00:05:34]} {[%emt 00:01:13]} 42. Ke3 {[%clk 00:04:39]} {[%emt 00:00:28]} Rc7
{[%clk 00:05:33]} {[%emt 00:00:32]} 43. Qd6 {[%clk 00:04:27]} {[%emt 00:00:41]}
Rd7 {[%clk 00:05:33]} {[%emt 00:00:31]} 44. Bxf6+ {[%clk 00:02:55]} {[%emt
00:02:01]} Rxf6 {[%clk 00:05:38]} {[%emt 00:00:24]} 45. Qe5 {[%clk 00:03:07]}
{[%emt 00:00:19]} Rd3+ {[%clk 00:02:01]} {[%emt 00:04:07]} 46. Ke2 {[%clk
00:03:19]} {[%emt 00:00:19]} Rd2+ {[%clk 00:01:55]} {[%emt 00:00:36]} 47. Ke1
{[%clk 00:03:01]} {[%emt 00:00:49]} Rd8 {[%clk 00:00:32]} {[%emt 00:01:52]} 48.
Qxf6+ {[%clk 00:03:24]} {[%emt 00:00:06]} Kg8 {[%clk 00:00:53]} {[%emt
00:00:09]} 49. Qxd8+ {[%clk 00:03:51]} {[%emt 00:00:02]} Kg7 {[%clk 00:01:17]}
{[%emt 00:00:07]} 50. Qf6+ {[%clk 00:04:15]} {[%emt 00:00:06]} Kg8 {[%clk
00:01:41]} {[%emt 00:00:06]} 51. Re8# {[%clk 00:04:42]} {[%emt 00:00:03]} 1-0

[Event "NJSK 2026 Jeugd C"]
[Site "Helmond, Netherlands"]
[Date "2026.04.28"]
[Round "5.4"]
[White "Lenting, Roan"]
[Black "Koppenens, Oscar"]
[Result "1-0"]
[TimeControl "90min/40moves + 30sec/move"]
[WhiteTitle "-"]
[BlackTitle "-"]
[WhiteFideId "1085905"]
[BlackFideId "1087940"]
[WhiteElo "1986"]
[BlackElo "2036"]

1. c4 {[%clk 01:30:57]} {[%emt 00:00:04]} f5 {[%clk 01:30:41]} {[%emt
00:00:19]} 2. Nc3 {[%clk 01:31:01]} {[%emt 00:00:26]} Nf6 {[%clk 01:31:02]}
{[%emt 00:00:09]} 3. d4 {[%clk 01:31:01]} {[%emt 00:00:30]} g6 {[%clk
01:31:25]} {[%emt 00:00:06]} 4. g3 {[%clk 01:31:14]} {[%emt 00:00:17]} Bg7
{[%clk 01:31:45]} {[%emt 00:00:11]} 5. Bg2 {[%clk 01:31:38]} {[%emt 00:00:05]}
d6 {[%clk 01:32:04]} {[%emt 00:00:12]} 6. Nf3 {[%clk 01:25:54]} {[%emt
00:06:14]} c6 {[%clk 01:32:19]} {[%emt 00:00:15]} 7. O-O {[%clk 01:24:41]}
{[%emt 00:01:42]} O-O {[%clk 01:32:31]} {[%emt 00:00:19]} 8. Qb3 {[%clk
01:20:35]} {[%emt 00:04:35]} Na6 {[%clk 01:26:54]} {[%emt 00:06:07]} 9. c5+
{[%clk 01:16:16]} {[%emt 00:04:49]} d5 {[%clk 01:18:55]} {[%emt 00:08:29]} 10.
Ne5 {[%clk 01:11:53]} {[%emt 00:04:53]} Nd7 {[%clk 01:15:22]} {[%emt 00:04:03]}
11. f4 {[%clk 00:52:30]} {[%emt 00:19:53]} Nxe5 {[%clk 01:13:18]} {[%emt
00:02:35]} 12. fxe5 {[%clk 00:51:26]} {[%emt 00:01:34]} e6 {[%clk 01:13:33]}
{[%emt 00:00:16]} 13. Qa3 {[%clk 00:46:40]} {[%emt 00:05:15]} Nc7 {[%clk
01:09:11]} {[%emt 00:04:52]} 14. b4 {[%clk 00:46:13]} {[%emt 00:00:57]} a5
{[%clk 01:08:03]} {[%emt 00:01:38]} 15. bxa5 {[%clk 00:45:53]} {[%emt
00:00:49]} Nb5 {[%clk 01:06:10]} {[%emt 00:02:23]} 16. Nxb5 {[%clk 00:46:06]}
{[%emt 00:00:17]} Rxa5 {[%clk 01:05:30]} {[%emt 00:01:10]} 17. Qd3 {[%clk
00:43:32]} {[%emt 00:03:03]} cxb5 {[%clk 01:03:46]} {[%emt 00:02:15]} 18. Bd2
{[%clk 00:42:49]} {[%emt 00:01:13]} Ra4 {[%clk 01:02:51]} {[%emt 00:01:25]} 19.
e3 {[%clk 00:42:22]} {[%emt 00:00:56]} Bd7 {[%clk 01:03:17]} {[%emt 00:00:05]}
20. Rfb1 {[%clk 00:41:59]} {[%emt 00:00:53]} b6 {[%emt 00:05:27]} 21. Bb4
{[%clk 00:39:50]} Rf7 {[%clk 00:58:25]} {[%emt 00:03:04]} 22. Bf1 {[%clk
00:37:05]} {[%emt 00:03:15]} Bc6 {[%clk 00:44:55]} {[%emt 00:14:00]} 23. Qb3
{[%clk 00:35:34]} {[%emt 00:02:01]} Rb7 {[%clk 00:42:56]} {[%emt 00:02:28]} 24.
cxb6 {[%clk 00:34:02]} {[%emt 00:02:03]} Qxb6 {[%emt 00:01:46]} 25. a3 {[%clk
00:32:54]} Ra8 {[%clk 00:39:31]} {[%emt 00:04:19]} 26. Rc1 {[%clk 00:32:10]}
{[%emt 00:01:14]} Rc8 {[%clk 00:36:19]} {[%emt 00:03:42]} 27. Rc3 {[%clk
00:31:29]} {[%emt 00:01:11]} Bf8 {[%clk 00:31:03]} {[%emt 00:05:45]} 28. Rac1
{[%clk 00:30:54]} {[%emt 00:01:05]} Rbb8 {[%clk 00:26:50]} {[%emt 00:04:44]} 29.
Bxf8 {[%clk 00:30:11]} {[%emt 00:01:12]} Kxf8 {[%clk 00:26:58]} {[%emt
00:00:22]} 30. Qb4+ {[%clk 00:30:16]} {[%emt 00:00:26]} Kf7 {[%clk 00:26:28]}
{[%emt 00:01:00]} 31. Qd6 {[%clk 00:29:00]} {[%emt 00:01:45]} Rd8 {[%clk
00:20:47]} {[%emt 00:06:11]} 32. Qxc6 {[%clk 00:29:15]} {[%emt 00:00:15]} Qxc6
{[%clk 00:21:12]} {[%emt 00:00:06]} 33. Rxc6 {[%clk 00:29:40]} {[%emt
00:00:06]} Rd7 {[%clk 00:21:32]} {[%emt 00:00:09]} 34. Rb1 {[%clk 00:29:29]}
{[%emt 00:00:41]} Rdb7 {[%clk 00:21:53]} {[%emt 00:00:10]} 35. Rb4 {[%clk
00:29:50]} {[%emt 00:00:08]} Ra8 {[%clk 00:22:06]} {[%emt 00:00:17]} 36. Rc3
{[%clk 00:30:10]} {[%emt 00:00:09]} Ra5 {[%clk 00:22:29]} {[%emt 00:00:08]} 37.
Rcb3 {[%clk 00:30:27]} {[%emt 00:00:12]} Rba7 {[%clk 00:22:50]} {[%emt
00:00:10]} 38. Rxb5 {[%clk 00:30:21]} {[%emt 00:00:36]} Rxa3 {[%clk 00:23:14]}
{[%emt 00:00:06]} 39. Rxa3 {[%clk 00:30:45]} {[%emt 00:00:07]} Rxa3 {[%clk
00:23:38]} {[%emt 00:00:05]} 40. Rb7+ {[%clk 00:31:10]} {[%emt 00:00:05]} Kg8
{[%clk 00:24:03]} {[%emt 00:00:05]} 41. Kf2 {[%clk 00:31:33]} {[%emt 00:00:07]}
h6 {[%clk 00:24:06]} {[%emt 00:00:27]} 42. Re7 {[%clk 00:31:54]} {[%emt
00:00:09]} Ra2+ {[%clk 00:24:21]} {[%emt 00:00:17]} 43. Be2 {[%clk 00:32:17]}
{[%emt 00:00:05]} 1-0